bitfinex-derivatives/quotes_BTCF0:USTF0_20250218
["timestamp","ask_amount","ask_price","bid_price","bid_amount"]
[1739855287537,0.2082165,96059.0,96057.0,0.3608]
[1739855287739,0.001,96063.0,96049.0,0.06707062]
[1739855287943,0.2082316,96052.0,96046.0,0.19708613]
[1739855288247,0.0951,96051.0,96046.0,0.19708613]
[1739855289038,0.0951,96051.0,96046.0,0.18666552]
[1739855289445,0.0951,96051.0,96046.0,0.18966552]
[1739855290346,0.0951,96051.0,96046.0,0.19266552]
[1739855290843,0.0951,96051.0,96046.0,0.006]
[1739855291240,0.31358228,96051.0,96046.0,0.006]
[1739855293732,0.10534838,96051.0,96046.0,0.006]
[1739855294047,0.2082382,96049.0,96046.0,0.006]
[1739855295035,0.2082412,96048.0,96046.0,0.006]
[1739855296146,0.2082412,96048.0,96046.0,0.003]
[1739855296350,0.2082412,96048.0,96046.0,0.006]
[1739855305548,0.3608,96049.0,96046.0,0.006]
[1739855305747,0.3608,96049.0,96047.0,0.10416]
[1739855307153,0.3608,96049.0,96047.0,0.10616]
[1739855307543,0.3608,96049.0,96047.0,0.10916]
[1739855309853,0.28068228,96051.0,96047.0,0.10916]
[1739855310161,0.07244838,96051.0,96048.0,0.0333]
[1739855310351,0.031,96051.0,96049.0,0.2082362]
[1739855310555,0.00015612,96067.0,96050.0,0.3608]
[1739855310853,0.00015612,96067.0,96058.0,0.3608]
[1739855311062,0.00015612,96067.0,96066.0,0.5690005]
[1739855313157,0.00115612,96067.0,96066.0,0.5690005]
[1739855313557,0.00415612,96067.0,96066.0,0.5690005]
[1739855313755,0.00715612,96067.0,96066.0,0.5690005]
[1739855315155,0.00715612,96067.0,96066.0,0.3608]
[1739855315358,0.03825612,96067.0,96066.0,0.3608]
[1739855327867,0.03425612,96067.0,96066.0,0.3608]
[1739855328066,0.03625612,96067.0,96066.0,0.3608]
[1739855328661,0.03425612,96067.0,96066.0,0.3608]
[1739855328854,0.03725612,96067.0,96066.0,0.3608]
[1739855334172,0.03625612,96067.0,96066.0,0.3608]
[1739855334669,0.03325612,96067.0,96066.0,0.3608]
[1739855334869,0.03625612,96067.0,96066.0,0.3608]
[1739855335371,0.00515612,96067.0,96066.0,0.3608]
[1739855335568,0.00615612,96067.0,96066.0,0.3608]
[1739855336960,0.00315612,96067.0,96066.0,0.3608]
[1739855337174,0.00215612,96067.0,96066.0,0.3608]
[1739855337376,0.00415612,96067.0,96066.0,0.3608]
[1739855337766,0.2175229,96098.0,96081.0,0.208168]
[1739855337966,0.01066295,96084.0,96081.0,0.208168]
[1739855338470,0.0617,96089.0,96081.0,0.208168]
[1739855338862,0.0617,96089.0,96081.0,0.209168]
[1739855339065,0.006,96082.0,96081.0,0.209168]
[1739855339965,0.009,96082.0,96081.0,0.210168]
[1739855340478,0.003,96082.0,96081.0,0.210168]
[1739855341175,0.007,96082.0,96081.0,0.210168]
[1739855344076,0.007,96082.0,96081.0,0.002]
[1739855344272,0.007,96082.0,96081.0,0.10608]
[1739855344879,0.007,96082.0,96081.0,0.002]
[1739855345178,0.007,96082.0,96081.0,0.10608]
[1739855345769,0.007,96082.0,96081.0,0.05618]
[1739855345973,0.2081716,96080.0,96075.0,0.36095612]
[1739855346171,0.0307,96079.0,96075.0,0.36095612]
[1739855346376,0.2081789,96076.0,96075.0,0.36095612]
[1739855347180,0.0309,96078.0,96075.0,0.36095612]
[1739855347979,0.004,96076.0,96075.0,0.36095612]
[1739855348482,0.0389,96078.0,96075.0,0.36195612]
[1739855349085,0.0329,96077.0,96075.0,0.36195612]
[1739855349488,0.21958922,96077.0,96075.0,0.36195612]
[1739855350080,0.01,96076.0,96075.0,0.36295612]
[1739855350682,0.004,96076.0,96075.0,0.36195612]
[1739855350878,0.22958922,96077.0,96075.0,0.36295612]
[1739855351478,0.006,96076.0,96075.0,0.36295612]
[1739855352195,0.006,96076.0,96075.0,0.36195612]
[1739855352392,0.01,96076.0,96075.0,0.36295612]
[1739855352688,0.01,96076.0,96075.0,0.00215612]
[1739855352879,0.07031815,96076.0,96075.0,0.00215612]
[1739855353480,0.06431815,96076.0,96075.0,0.00115612]
[1739855353690,0.06431815,96076.0,96075.0,0.00215612]
[1739855354187,0.06931815,96076.0,96075.0,0.00215612]
[1739855356894,0.06431815,96076.0,96075.0,0.00115612]
[1739855357086,0.06931815,96076.0,96075.0,0.00115612]
[1739855357392,0.005,96076.0,96075.0,0.00015612]
[1739855357592,0.009,96076.0,96075.0,0.00015612]
[1739855358188,0.005,96076.0,96075.0,0.00015612]
[1739855358397,0.009,96076.0,96075.0,0.00115612]
[1739855359090,0.009,96076.0,96075.0,0.00015612]
[1739855370005,0.009,96076.0,96075.0,0.00115612]
[1739855382205,0.3698,96076.0,96075.0,0.00115612]
[1739855388807,0.3698,96076.0,96062.0,0.0311]
[1739855389112,0.2082038,96065.0,96062.0,0.0311]
[1739855389313,0.0312,96064.0,96062.0,0.0311]
[1739855390113,0.0312,96064.0,96057.0,0.0305]
[1739855390418,0.208225,96055.0,96053.0,0.031]
[1739855390607,0.3608,96058.0,96053.0,0.031]
[1739855390807,0.3608,96058.0,96054.0,0.10408]
[1739855391115,0.3608,96058.0,96055.0,0.2082244]
[1739855391914,0.3608,96058.0,96056.0,0.0332]
[1739855392110,0.3608,96058.0,96057.0,0.10412]
[1739855392507,0.37108014,96058.0,96057.0,0.10412]
[1739855399707,0.01028014,96058.0,96057.0,0.10412]
[1739855400017,0.2082145,96060.0,96057.0,0.10412]
[1739855400224,0.2082145,96060.0,96056.0,0.0332]
[1739855402123,0.2082145,96060.0,96056.0,0.0342]
[1739855402425,0.21865042,96060.0,96056.0,0.0352]
[1739855404324,0.2082187,96058.0,96056.0,0.002]
[1739855404618,0.03,96057.0,96056.0,0.002]
[1739855404807,0.03,96057.0,96056.0,0.10612]
[1739855406225,0.03,96057.0,96056.0,0.10512]
[1739855406420,0.03,96057.0,96056.0,0.10612]
[1739855410411,0.03,96057.0,96056.0,0.002]
[1739855410617,0.2082187,96058.0,96056.0,0.002]
[1739855410818,0.0329,96057.0,96056.0,0.002]
[1739855411830,0.0329,96057.0,96041.0,0.07405568]
[1739855412027,0.3608,96048.0,96041.0,0.07405568]
[1739855412331,0.3608,96048.0,96045.0,0.2082444]
[1739855412622,0.3588,96048.0,96045.0,0.2082444]
[1739855412832,0.3588,96048.0,96041.0,0.07405568]
[1739855413031,0.3588,96048.0,96042.0,0.01628045]
[1739855413323,0.3588,96048.0,96043.0,0.12040045]
[1739855413524,0.3588,96048.0,96046.0,0.2082436]
[1739855415621,0.3588,96048.0,96046.0,0.2122436]
[1739855415923,0.3588,96048.0,96046.0,0.2162436]
[1739855417017,0.3588,96048.0,96046.0,0.008]
[1739855417218,0.0315,96047.0,96046.0,0.008]
[1739855418427,0.04186031,96047.0,96046.0,0.008]
[1739855419135,0.0315,96047.0,96046.0,0.008]
[1739855420533,0.0315,96047.0,96046.0,0.02428021]
[1739855421126,0.04209627,96047.0,96046.0,0.02428021]
[1739855423827,0.04209627,96047.0,96046.0,0.008]
[1739855424933,0.0315,96047.0,96046.0,0.008]
[1739855425131,0.3588,96048.0,96046.0,0.01870068]
[1739855425334,0.3588,96048.0,96047.0,0.2082417]
[1739855426034,0.3588,96048.0,96047.0,0.22452235]
[1739855428031,0.3588,96048.0,96047.0,0.23152235]
[1739855430739,0.3588,96048.0,96047.0,0.24208368]
[1739855435833,0.3588,96048.0,96047.0,0.22580303]
[1739855437029,0.0306,96055.0,96053.0,0.2082269]
[1739855437233,0.36136001,96059.0,96058.0,0.2082179]
[1739855437541,0.0309,96065.0,96061.0,0.2082114]
[1739855437542,0.0312,96062.0,96061.0,0.2082114]
[1739855437731,0.0312,96062.0,96061.0,0.5690114]
[1739855438636,0.0322,96062.0,96061.0,0.5690114]
[1739855439835,0.0322,96062.0,96061.0,0.57955185]
[1739855440028,0.0332,96062.0,96061.0,0.57955185]
[1739855440228,0.002,96062.0,96061.0,0.57955185]
[1739855448232,0.0308,96071.0,96061.0,0.37134045]
[1739855448433,0.0308,96071.0,96070.0,0.5689919]
[1739855450440,0.0318,96071.0,96070.0,0.5689919]
[1739855450742,0.001,96071.0,96070.0,0.5689919]
[1739855451739,0.002,96071.0,96070.0,0.5689919]
[1739855462442,0.0323,96071.0,96070.0,0.3608]
[1739855475951,0.0323,96071.0,96063.0,0.2082061]
[1739855475952,0.6012909,96071.0,96063.0,0.2082061]
[1739855476258,0.2081926,96070.0,96063.0,0.2082061]
[1739855476554,0.2081947,96069.0,96063.0,0.2082061]
[1739855476958,0.2081947,96069.0,96063.0,0.2092061]
[1739855477161,0.2081947,96069.0,96063.0,0.2102061]
[1739855478448,0.2081967,96068.0,96063.0,0.2102061]
[1739855479156,0.39166001,96071.0,96063.0,0.002]
[1739855479360,0.2082034,96065.0,96063.0,0.002]
[1739855479955,0.2082034,96065.0,96063.0,0.001]
[1739855480151,0.2082034,96065.0,96063.0,0.002]
[1739855488261,0.2082034,96065.0,96064.0,0.0622]
[1739855489659,0.2082034,96065.0,96064.0,0.0632]
[1739855489855,0.2082034,96065.0,96064.0,0.002]
[1739855502859,0.2082309,96052.0,96051.0,0.93862]
[1739855503064,0.2082309,96052.0,96051.0,0.0313]
[1739855503472,0.2413309,96052.0,96051.0,0.0313]
[1739855504271,0.2413309,96052.0,96051.0,0.0363]
[1739855504875,0.2413309,96052.0,96051.0,0.0423]
[1739855507275,0.25172649,96052.0,96051.0,0.0423]
[1739855508282,0.25172649,96052.0,96051.0,0.0313]
[1739855508484,0.25172649,96052.0,96051.0,0.0383]
[1739855509782,0.25172649,96052.0,96051.0,0.0343]
[1739855510674,0.25172649,96052.0,96051.0,0.0333]
[1739855513884,0.25172649,96052.0,96051.0,0.002]
[1739855520686,0.0331,96052.0,96051.0,0.002]
[1739855521979,0.04362267,96052.0,96051.0,0.002]
[1739855525485,0.0331,96052.0,96051.0,0.002]
[1739855526491,0.36144,96053.0,96052.0,0.2082309]
[1739855526687,0.3608,96053.0,96052.0,0.2082309]
[1739855527582,0.3608,96053.0,96052.0,0.2092309]
[1739855527791,0.3608,96053.0,96052.0,0.2102309]
[1739855529085,0.0305,96064.0,96052.0,0.2102309]
[1739855529282,0.04113065,96064.0,96054.0,0.06707062]
[1739855529487,0.04113065,96064.0,96055.0,0.0939]
[1739855533395,0.01063065,96064.0,96055.0,0.0939]
[1739855533597,0.56956361,96065.0,96055.0,0.0939]
[1739855533798,0.5690036,96065.0,96055.0,0.0939]
[1739855534294,0.3608,96065.0,96055.0,0.36919402]
[1739855537087,0.3608,96065.0,96055.0,0.37019402]
[1739855537694,0.3608,96065.0,96055.0,0.36919402]
[1739855537895,0.3608,96065.0,96056.0,0.2082212]
[1739855538698,0.37131373,96065.0,96056.0,0.2082212]
[1739855539398,0.0318,96069.0,96064.0,0.2082049]
[1739855539692,0.0318,96069.0,96065.0,0.0654]
[1739855539899,0.0318,96069.0,96066.0,0.104]
[1739855540397,0.0318,96069.0,96068.0,0.2081962]
[1739855540702,0.0318,96069.0,96065.0,0.0654]
[1739855540902,0.0348,96069.0,96066.0,0.104]
[1739855541298,0.0388,96069.0,96066.0,0.104]
[1739855541799,0.0308,96068.0,96066.0,0.104]
[1739855543001,0.0348,96068.0,96066.0,0.104]
[1739855543394,0.0388,96068.0,96066.0,0.104]
[1739855544889,0.0358,96068.0,96066.0,0.104]
[1739855545602,0.0328,96068.0,96066.0,0.104]
[1739855546204,0.0348,96068.0,96066.0,0.104]
[1739855546699,0.0338,96068.0,96066.0,0.104]
[1739855546901,0.0378,96068.0,96066.0,0.104]
[1739855547401,0.0378,96068.0,96066.0,0.3121996]
[1739855551292,0.0378,96068.0,96066.0,0.104]
[1739855551499,0.5689984,96067.0,96066.0,0.104]
[1739855551803,0.5689984,96067.0,96058.0,0.27528732]
[1739855552204,0.2082014,96066.0,96058.0,0.27528732]
[1739855553392,0.001,96066.0,96058.0,0.27528732]
[1739855553701,0.2082032,96065.0,96058.0,0.27528732]
[1739855556004,0.2092032,96065.0,96058.0,0.27528732]
[1739855556808,0.2092032,96065.0,96053.0,0.01056778]
[1739855556809,0.001,96065.0,96055.0,0.06707062]
[1739855557110,0.2082086,96063.0,96052.0,0.0627]
[1739855557404,0.0305,96062.0,96052.0,0.0627]
[1739855557906,0.0311,96061.0,96052.0,0.2709299]
[1739855558407,0.0325,96060.0,96052.0,0.2082299]
[1739855558809,0.0325,96060.0,96052.0,0.2092299]
[1739855559305,0.0325,96060.0,96052.0,0.2082299]
[1739855559608,0.04272465,96060.0,96052.0,0.2092299]
[1739855560401,0.04272465,96060.0,96052.0,0.2102299]
[1739855563803,0.3608,96059.0,96052.0,0.2102299]
[1739855564005,0.3608,96059.0,96052.0,0.002]
[1739855564212,0.3608,96059.0,96053.0,0.104]
[1739855564507,0.3608,96059.0,96054.0,0.104]
[1739855564709,0.2082244,96055.0,96054.0,0.104]
[1739855565012,0.3608,96059.0,96052.0,0.002]
[1739855565013,0.2082287,96053.0,96052.0,0.002]
[1739855565507,0.2082287,96053.0,96052.0,0.001]
[1739855566413,0.2082287,96053.0,96052.0,0.002]
[1739855566707,0.2082287,96053.0,96052.0,0.001]
[1739855567713,0.2102287,96053.0,96052.0,0.001]
[1739855567906,0.2082379,96049.0,96035.0,0.0315]
[1739855568215,0.3608,96044.0,96035.0,0.0315]
[1739855568511,0.2082706,96034.0,96020.0,0.18666552]
[1739855568715,0.3608,96029.0,96024.0,0.0322]
[1739855568914,0.3608,96029.0,96025.0,0.10408]
[1739855569211,0.3588,96029.0,96025.0,0.10408]
[1739855570412,0.093,96033.0,96025.0,0.10408]
[1739855571012,0.10344811,96033.0,96025.0,0.10808]
[1739855571211,0.093,96033.0,96025.0,0.004]
[1739855571413,0.093,96033.0,96026.0,0.1356]
[1739855571603,0.062,96033.0,96026.0,0.1356]
[1739855572600,0.07252432,96033.0,96026.0,0.1356]
[1739855572815,0.07252432,96033.0,96026.0,0.0316]
[1739855573013,0.07252432,96033.0,96026.0,0.0346]
[1739855573214,0.062,96033.0,96026.0,0.0346]
[1739855573511,0.062,96033.0,96027.0,0.10408]
[1739855573710,0.062,96033.0,96026.0,0.0346]
[1739855573912,0.062,96033.0,96027.0,0.10404]
[1739855575116,0.062,96033.0,96027.0,0.10704]
[1739855575502,0.062,96033.0,96027.0,0.11004]
[1739855576510,0.0302,96033.0,96027.0,0.11004]
[1739855577921,0.0326,96032.0,96027.0,0.11004]
[1739855579019,0.0326,96032.0,96027.0,0.10704]
[1739855579317,0.0302,96033.0,96027.0,0.10904]
[1739855580323,0.0302,96033.0,96027.0,0.10604]
[1739855580519,0.0302,96033.0,96027.0,0.10904]
[1739855581419,0.0302,96033.0,96027.0,0.11004]
[1739855585024,0.032,96032.0,96027.0,0.11004]
[1739855587924,0.0302,96033.0,96027.0,0.11004]
[1739855588624,0.1851649,96033.0,96027.0,0.11004]
[1739855588825,0.1851649,96033.0,96027.0,0.006]
[1739855589023,0.1851649,96033.0,96027.0,0.003]
[1739855589226,0.1851649,96033.0,96027.0,0.006]
[1739855591730,0.1851649,96033.0,96027.0,0.2142848]
[1739855592827,0.1549649,96035.0,96027.0,0.006]
[1739855593019,0.1549649,96035.0,96034.0,0.2082701]
[1739855593215,0.1549649,96035.0,96028.0,0.3608]
[1739855593425,0.1549649,96035.0,96028.0,0.5690823]
[1739855594728,0.1549649,96035.0,96028.0,0.5710823]
[1739855594923,0.16555581,96035.0,96028.0,0.5730823]
[1739855596333,0.16555581,96035.0,96028.0,0.3648]
[1739855596632,0.1549649,96029.0,96028.0,0.3648]
[1739855597326,0.1549649,96029.0,96028.0,0.004]
[1739855597836,0.1549649,96029.0,96028.0,0.002]
[1739855598029,0.1549649,96029.0,96028.0,0.004]
[1739855600226,0.26431885,96031.0,96028.0,0.004]
[1739855601534,0.26431885,96031.0,96029.0,0.0319]
[1739855603129,0.26431885,96031.0,96028.0,0.004]
[1739855603335,0.26431885,96031.0,96028.0,0.002]
[1739855603540,0.26431885,96031.0,96029.0,0.004]
[1739855604338,0.13559375,96030.0,96029.0,0.002]
[1739855606137,0.13559375,96030.0,96028.0,0.002]
[1739855606343,0.13559375,96030.0,96020.0,0.06707062]
[1739855606646,0.13559375,96030.0,96029.0,0.004]
[1739855607340,0.13559375,96030.0,96029.0,0.002]
[1739855607541,0.05064878,96030.0,96028.0,0.002]
[1739855608241,0.05064878,96030.0,96029.0,0.002]
[1739855608742,0.05064878,96030.0,96029.0,0.004]
[1739855609835,0.05064878,96030.0,96029.0,0.002]
[1739855610735,0.05064878,96030.0,96029.0,0.004]
[1739855611343,0.05064878,96030.0,96029.0,0.003]
[1739855611542,0.05064878,96030.0,96029.0,0.002]
[1739855611938,0.37246794,96031.0,96029.0,0.002]
[1739855613942,0.16419044,96031.0,96020.0,0.06707062]
[1739855614139,0.2082788,96030.0,96029.0,0.001]
[1739855614537,0.17119044,96031.0,96020.0,0.06707062]
[1739855614743,0.2082825,96029.0,96020.0,0.06707062]
[1739855615537,0.17019044,96031.0,96020.0,0.06707062]
[1739855615738,0.208284,96028.0,96020.0,0.06707062]
[1739855617243,0.209284,96028.0,96020.0,0.06707062]
[1739855618053,0.210284,96028.0,96020.0,0.0332]
[1739855618254,0.210284,96028.0,96020.0,0.0635]
[1739855618655,0.2082861,96027.0,96020.0,0.0635]
[1739855619756,0.4420291,96027.0,96020.0,0.0635]
[1739855619955,0.4430291,96027.0,96020.0,0.0635]
[1739855620251,0.4440291,96027.0,96020.0,0.0635]
[1739855622751,0.18663538,96021.0,96020.0,0.0635]
[1739855623251,0.18663538,96021.0,96020.0,0.3019005]
[1739855624349,0.18763538,96021.0,96020.0,0.3019005]
[1739855624553,0.18863538,96021.0,96020.0,0.3019005]
[1739855626364,0.05264878,96021.0,96020.0,0.3019005]
[1739855627655,0.05264878,96021.0,96020.0,0.2718005]
[1739855630067,0.14046827,96021.0,96020.0,0.2718005]
[1739855630364,0.14046827,96021.0,96020.0,0.2083005]
[1739855631055,0.15091325,96021.0,96020.0,0.2083005]
[1739855633365,0.14046827,96021.0,96020.0,0.2083005]
[1739855633567,0.05264878,96021.0,96020.0,0.2083005]
[1739855636665,0.002,96021.0,96020.0,0.2083005]
[1739855639671,0.05264878,96021.0,96020.0,0.2083005]
[1739855645674,0.05264878,96021.0,96020.0,0.2405005]
[1739855645871,0.2394335,96021.0,96020.0,0.2405005]
[1739855649066,0.2394335,96021.0,96020.0,0.2083005]
[1739855650473,0.05264878,96021.0,96020.0,0.2083005]
[1739855652779,0.05264878,96021.0,96015.0,0.2083101]
[1739855653077,0.0953,96020.0,96015.0,0.2083101]
[1739855653280,0.0953,96020.0,96012.0,0.0324]
[1739855654268,0.10555807,96020.0,96014.0,0.01055566]
[1739855654784,0.10655807,96020.0,96014.0,0.01055566]
[1739855655269,0.10755807,96020.0,96014.0,0.01055566]
[1739855656972,0.10755807,96020.0,96014.0,0.21886736]
[1739855657275,0.15820685,96020.0,96014.0,0.21886736]
[1739855658481,0.14794878,96020.0,96015.0,0.2083107]
[1739855660678,0.15861961,96020.0,96015.0,0.2083107]
[1739855660872,0.25552634,96020.0,96015.0,0.2083107]
[1739855670185,0.25552634,96020.0,96014.0,0.01055566]
[1739855671295,0.25552634,96020.0,96014.0,0.3608]
[1739855672187,0.25452634,96020.0,96014.0,0.3608]
[1739855672391,0.25352634,96020.0,96014.0,0.3628]
[1739855672890,0.25352634,96020.0,96014.0,0.37348833]
[1739855673891,0.2083034,96019.0,96014.0,0.37348833]
[1739855674092,0.35585891,96019.0,96014.0,0.37348833]
[1739855674688,0.35585891,96019.0,96014.0,0.01268833]
[1739855674893,0.35585891,96019.0,96014.0,0.3618]
[1739855675088,0.2083113,96015.0,96014.0,0.3628]
[1739855675288,0.2083113,96015.0,96014.0,0.002]
[1739855678598,0.35586681,96015.0,96014.0,0.002]
[1739855689494,0.4745413,96015.0,96014.0,0.002]
[1739855689899,0.4745413,96015.0,96014.0,0.00072014]
[1739855698408,0.35586681,96015.0,96014.0,0.00072014]
[1739855699400,0.2083309,96006.0,96005.0,0.3608]
[1739855699802,0.2083388,96003.0,96000.0,0.1]
[1739855700607,0.2083388,96003.0,96001.0,0.0309]
[1739855700809,0.2003388,96003.0,96001.0,0.0309]
[1739855701402,0.2013388,96003.0,96001.0,0.0309]
[1739855701603,0.2023388,96003.0,96001.0,0.0309]
[1739855702311,0.2023388,96003.0,96001.0,0.0369]
[1739855702908,0.2013388,96003.0,96001.0,0.0369]
[1739855703514,0.3608,96002.0,96001.0,0.0369]
[1739855704105,0.3608,96002.0,96001.0,0.006]
[1739855704305,0.3608,96002.0,96001.0,0.10996]
[1739855704507,0.3608,96002.0,96001.0,0.10396]
[1739855706916,0.2083417,96001.0,96000.0,0.01169704]
[1739855708107,0.2083417,96001.0,96000.0,0.01269704]
[1739855711712,0.15370246,96001.0,96000.0,0.01269704]
[1739855726531,0.18600246,96001.0,95982.0,0.3608]
[1739855726733,0.3608,95994.0,95990.0,0.06707062]
[1739855727037,0.0315,95993.0,95984.0,0.06707062]
[1739855727342,0.0315,95993.0,95982.0,0.5699422]
[1739855727547,0.0315,95993.0,95982.0,0.5691822]
[1739855727842,0.0315,95993.0,95982.0,0.5711822]
[1739855728044,0.0315,95993.0,95990.0,0.001]
[1739855728431,0.0315,95993.0,95982.0,0.5711822]
[1739855728639,0.0315,95993.0,95982.0,0.5721822]
[1739855729144,0.0315,95993.0,95990.0,0.001]
[1739855730035,0.0325,95993.0,95990.0,0.001]
[1739855730436,0.15677966,95992.0,95990.0,0.001]
[1739855730634,0.18777966,95992.0,95990.0,0.002]
[1739855730840,0.18777966,95992.0,95990.0,0.001]
[1739855731546,0.18777966,95992.0,95990.0,0.002]
[1739855731937,0.18777966,95992.0,95990.0,0.001]
[1739855732136,0.18777966,95992.0,95990.0,0.002]
[1739855732345,0.18777966,95992.0,95990.0,0.003]
[1739855734145,0.15677966,95991.0,95990.0,0.003]
[1739855734550,0.00666763,95991.0,95990.0,0.003]
[1739855735443,0.00666763,95991.0,95990.0,0.001]
[1739855735640,0.00666763,95991.0,95990.0,0.003]
[1739855737439,0.0172292,95991.0,95990.0,0.003]
[1739855744748,0.14464602,95991.0,95990.0,0.003]
[1739855744949,0.14464602,95991.0,95990.0,0.00093774]
[1739855746153,0.14464602,95991.0,95982.0,0.5691822]
[1739855747354,0.14464602,95991.0,95982.0,0.5701822]
[1739855748057,0.14564602,95991.0,95982.0,0.6030822]
[1739855749150,0.13508445,95991.0,95982.0,0.6030822]
[1739855749847,0.00666763,95990.0,95982.0,0.6030822]
[1739855750856,0.00666763,95990.0,95982.0,0.6020822]
[1739855751452,0.00766763,95990.0,95982.0,0.3937]
[1739855752861,0.2083686,95989.0,95982.0,0.0329]
[1739855754363,0.2093686,95989.0,95982.0,0.0329]
[1739855758062,0.18416422,95988.0,95982.0,0.0329]
[1739855760170,0.18516422,95988.0,95982.0,0.0329]
[1739855761663,0.21836422,95988.0,95982.0,0.0329]
[1739855761865,0.2083721,95987.0,95982.0,0.0329]
[1739855762070,0.21836422,95988.0,95981.0,0.0636]
[1739855762376,0.21836422,95988.0,95930.0,0.0364898]
[1739855762377,0.3608,95982.0,95970.0,0.06707062]
[1739855762568,0.208399,95975.0,95973.0,0.10392]
[1739855762871,0.0332,95974.0,95972.0,0.00068]
[1739855763075,0.0332,95974.0,95973.0,0.10392]
[1739855763272,0.2416003,95974.0,95973.0,0.10392]
[1739855764260,0.2416003,95974.0,95961.0,0.18748305]
[1739855764261,0.394,95974.0,95961.0,0.18748305]
[1739855764465,0.3608,95962.0,95956.0,0.2499774]
[1739855764766,0.2084372,95957.0,95956.0,0.2499774]
[1739855766765,0.2124372,95957.0,95956.0,0.2499774]
[1739855766970,0.2124372,95957.0,95936.0,0.0629]
[1739855766971,0.2084595,95947.0,95936.0,0.0629]
[1739855767173,0.3608,95937.0,95936.0,0.0629]
[1739855767478,0.3608,95937.0,95936.0,0.0302]
[1739855767868,0.3608,95937.0,95935.0,0.10396]
[1739855768075,0.3608,95937.0,95931.0,0.2499774]
[1739855768278,0.2084876,95934.0,95931.0,0.2499774]
[1739855768978,0.21903163,95934.0,95931.0,0.2499774]
[1739855769979,0.2084915,95932.0,95931.0,0.2499774]
[1739855770775,0.3608,95937.0,95931.0,0.2499774]
[1739855771173,0.3608,95937.0,95932.0,0.0633]
[1739855771875,0.05734111,95933.0,95932.0,0.0633]
[1739855772665,0.26778374,95937.0,95932.0,0.0633]
[1739855772865,0.21767186,95939.0,95938.0,0.2084785]
[1739855773276,0.11787186,95939.0,95938.0,0.2084785]
[1739855773863,0.00015629,95946.0,95934.0,0.3608]
[1739855773864,0.00015629,95946.0,95945.0,0.2084633]
[1739855774068,0.00015629,95946.0,95945.0,0.5692633]
[1739855774266,0.0306,95970.0,95945.0,0.37121708]
[1739855774467,0.0306,95970.0,95965.0,0.3608]
[1739855774673,0.0306,95970.0,95966.0,0.1044]
[1739855774879,0.3608,95975.0,95966.0,0.1044]
[1739855775181,0.3608,95975.0,95965.0,0.3608]
[1739855775571,0.3608,95966.0,95964.0,0.1048]
[1739855775882,0.0318,95965.0,95959.0,0.00015629]
[1739855776571,0.2402206,95965.0,95959.0,0.00015629]
[1739855777172,0.0368,95965.0,95959.0,0.00015629]
[1739855777368,0.0368,95965.0,95955.0,0.10238788]
[1739855777676,0.0408,95965.0,95955.0,0.10238788]
[1739855778676,0.18510027,95961.0,95955.0,0.10238788]
[1739855778868,0.18510027,95961.0,95951.0,0.10238788]
[1739855779069,0.0321,95960.0,95951.0,0.10238788]
[1739855779877,0.15426084,95957.0,95951.0,0.10238788]
[1739855780975,0.15626084,95957.0,95951.0,0.10238788]
[1739855782971,0.15726084,95957.0,95953.0,0.208444]
[1739855783677,0.15726084,95957.0,95956.0,0.2084394]
[1739855783876,0.15626084,95957.0,95956.0,0.2084394]
[1739855784073,0.15926084,95957.0,95956.0,0.2084394]
[1739855785474,0.15626084,95957.0,95956.0,0.2084394]
[1739855785778,0.16026084,95957.0,95956.0,0.2084394]
[1739855786773,0.16126084,95957.0,95952.0,0.0323]
[1739855786974,0.16126084,95957.0,95951.0,0.10238788]
[1739855786975,0.0321,95956.0,95951.0,0.10238788]
[1739855787179,0.0321,95956.0,95952.0,0.3608]
[1739855788080,0.002,95957.0,95952.0,0.3608]
[1739855788276,0.03,95955.0,95953.0,0.105]
[1739855789171,0.03,95955.0,95952.0,0.3608]
[1739855789370,0.03,95955.0,95954.0,0.10512]
[1739855789585,0.032,95955.0,95952.0,0.3608]
[1739855789778,0.032,95955.0,95953.0,0.10512]
[1739855789975,0.032,95955.0,95952.0,0.3608]
[1739855790175,0.035,95955.0,95953.0,0.10512]
[1739855791281,0.0302,95954.0,95953.0,0.10512]
[1739855791682,0.0302,95954.0,95945.0,0.90916]
[1739855791885,0.0302,95954.0,95946.0,0.10504]
[1739855792271,0.0322,95954.0,95946.0,0.10504]
[1739855792468,0.0342,95954.0,95946.0,0.10504]
[1739855792872,0.0322,95954.0,95946.0,0.10504]
[1739855793383,0.0322,95954.0,95947.0,0.10504]
[1739855793578,0.0322,95954.0,95942.0,0.0314]
[1739855793886,0.2084513,95951.0,95946.0,0.001]
[1739855794084,0.39156001,95954.0,95946.0,0.001]
[1739855794380,0.2084582,95948.0,95946.0,0.001]
[1739855794771,0.0308,95947.0,95946.0,0.001]
[1739855795389,0.0308,95947.0,95946.0,0.10504]
[1739855795687,0.04122935,95947.0,95933.0,0.0302]
[1739855795874,0.04122935,95947.0,95930.0,0.0015635]
[1739855796075,0.2084694,95943.0,95930.0,0.0015635]
[1739855796977,0.2084694,95943.0,95930.0,0.0045635]
[1739855797481,0.2084863,95935.0,95930.0,0.0045635]
[1739855797687,0.0638,95934.0,95930.0,0.0045635]
[1739855798184,0.208492,95932.0,95930.0,0.003]
[1739855798383,0.0315,95931.0,95930.0,0.003]
[1739855800287,0.0821945,95931.0,95930.0,0.003]
[1739855801977,0.4429945,95931.0,95930.0,0.003]
[1739855803275,0.6514882,95931.0,95930.0,0.002]
[1739855805486,0.4429945,95931.0,95930.0,0.002]
[1739855805988,0.0506945,95931.0,95930.0,0.002]
[1739855806186,0.0506945,95931.0,95930.0,0.3628]
[1739855811294,0.0638,95934.0,95930.0,0.3628]
[1739855811295,0.0506945,95932.0,95930.0,0.3628]
[1739855812393,0.0506945,95932.0,95931.0,0.0318]
[1739855813997,0.0506945,95932.0,95931.0,0.0328]
[1739855814391,0.0506945,95932.0,95931.0,0.003]